[Event "*** Titled Tuesday Blitz"]
[Site "Chess.com"]
[Date "2020.12.29"]
[Round "3"]
[White "ural58"]
[Black "Matols"]
[Result "1-0"]
[WhiteElo "2399"]
[BlackElo "2273"]
[TimeControl "180+1"]
[EndTime "10:26:07 PST"]
[Termination "ural58 won by resignation"]

1. e4 {[%clk 0:02:55.2]} 1... e6 {[%clk 0:03:00.1]} 2. Qe2 {[%clk 0:02:53.6]}
2... d5 {[%clk 0:03:00.3]} 3. exd5 {[%clk 0:02:52.8]} 3... Qxd5 {[%clk
0:03:00.4]} 4. Nc3 {[%clk 0:02:46.5]} 4... Qd8 {[%clk 0:03:00.1]} 5. Nf3 {[%clk
0:02:45.5]} 5... Nf6 {[%clk 0:02:59.6]} 6. d4 {[%clk 0:02:45.5]} 6... c6 {[%clk
0:02:59.5]} 7. Bg5 {[%clk 0:02:44.9]} 7... Be7 {[%clk 0:02:59.4]} 8. O-O-O
{[%clk 0:02:44.1]} 8... O-O {[%clk 0:02:57.9]} 9. g4 {[%clk 0:02:44.1]} 9... b5
{[%clk 0:02:56.6]} 10. h4 {[%clk 0:02:41.4]} 10... b4 {[%clk 0:02:56.8]} 11. Ne4
{[%clk 0:02:40.8]} 11... a5 {[%clk 0:02:53.3]} 12. Nxf6+ {[%clk 0:02:29.9]}
12... Bxf6 {[%clk 0:02:51.9]} 13. Qe4 {[%clk 0:02:30.2]} 13... Bb7 {[%clk
0:02:43.3]} 14. Bd3 {[%clk 0:02:29.5]} 14... g6 {[%clk 0:02:39.5]} 15. Qf4
{[%clk 0:02:22.1]} 15... Nd7 {[%clk 0:02:38.1]} 16. h5 {[%clk 0:02:14.1]} 16...
Bxg5 {[%clk 0:02:25.5]} 17. Nxg5 {[%clk 0:02:12.3]} 17... Qf6 {[%clk 0:02:24.8]}
18. Qe3 {[%clk 0:02:05.5]} 18... c5 {[%clk 0:02:12.1]} 19. Be4 {[%clk
0:02:05.2]} 19... cxd4 {[%clk 0:02:02.6]} 20. Rxd4 {[%clk 0:02:04.2]} 20... Nc5
{[%clk 0:01:46.4]} 21. Bxb7 {[%clk 0:02:00]} 21... Nxb7 {[%clk 0:01:46.3]} 22.
Ne4 {[%clk 0:01:55.2]} 22... Qe5 {[%clk 0:01:39.8]} 23. f4 {[%clk 0:01:51.6]}
23... Qg7 {[%clk 0:01:23.4]} 24. g5 {[%clk 0:01:49.3]} 24... f5 {[%clk
0:01:17.2]} 25. gxf6 {[%clk 0:01:48.3]} 25... Qh6 {[%clk 0:01:07.6]} 26. Rd7
{[%clk 0:01:42.4]} 26... e5 {[%clk 0:01:04.1]} 27. Rxb7 {[%clk 0:01:37.5]} 27...
exf4 {[%clk 0:01:04.1]} 28. Qf3 {[%clk 0:01:31.3]} 28... Rac8 {[%clk 0:01:01.9]}
29. hxg6 {[%clk 0:01:28.8]} 1-0

[Event "*** Titled Tuesday Blitz"]
[Site "Chess.com"]
[Date "2020.12.29"]
[Round "3"]
[White "ferdipy"]
[Black "googlegoom"]
[Result "1-0"]
[WhiteElo "2175"]
[BlackElo "2469"]
[TimeControl "180+1"]
[EndTime "10:26:12 PST"]
[Termination "ferdipy won by resignation"]

1. d4 {[%clk 0:02:59.1]} 1... d5 {[%clk 0:02:58.9]} 2. Nf3 {[%clk 0:02:59.4]}
2... Nf6 {[%clk 0:02:58.5]} 3. Bg5 {[%clk 0:02:59.9]} 3... e6 {[%clk 0:02:56.9]}
4. Nbd2 {[%clk 0:03:00.2]} 4... Be7 {[%clk 0:02:57.5]} 5. e3 {[%clk 0:03:00.5]}
5... Nbd7 {[%clk 0:02:58]} 6. Bd3 {[%clk 0:03:01]} 6... c5 {[%clk 0:02:58.2]} 7.
c3 {[%clk 0:03:01.2]} 7... b6 {[%clk 0:02:58.6]} 8. O-O {[%clk 0:03:01.7]} 8...
O-O {[%clk 0:02:57.8]} 9. Qe2 {[%clk 0:03:02.1]} 9... Bb7 {[%clk 0:02:56.6]} 10.
Rad1 {[%clk 0:03:02.2]} 10... Ne4 {[%clk 0:02:54.8]} 11. Bf4 {[%clk 0:03:02.2]}
11... Nxd2 {[%clk 0:02:48.9]} 12. Rxd2 {[%clk 0:03:01.6]} 12... a6 {[%clk
0:02:47.5]} 13. Re1 {[%clk 0:02:56.4]} 13... b5 {[%clk 0:02:45.7]} 14. Bb1
{[%clk 0:02:55.5]} 14... Qb6 {[%clk 0:02:36.8]} 15. h3 {[%clk 0:02:54.4]} 15...
b4 {[%clk 0:02:32.3]} 16. cxb4 {[%clk 0:02:51.2]} 16... cxd4 {[%clk 0:02:29.3]}
17. a3 {[%clk 0:02:47.6]} 17... dxe3 {[%clk 0:02:25.4]} 18. Bxe3 {[%clk
0:02:47.7]} 18... Qc7 {[%clk 0:02:23.8]} 19. Nd4 {[%clk 0:02:41.6]} 19... Bf6
{[%clk 0:02:14.8]} 20. Qg4 {[%clk 0:02:22.5]} 20... Ne5 {[%clk 0:02:12.1]} 21.
Qg3 {[%clk 0:02:20.8]} 21... Qd7 {[%clk 0:02:03.6]} 22. Bd3 {[%clk 0:01:59.6]}
22... Nxd3 {[%clk 0:01:53.6]} 23. Rxd3 {[%clk 0:02:00]} 23... Rac8 {[%clk
0:01:51.4]} 24. Nb3 {[%clk 0:01:55.7]} 24... Bxb2 {[%clk 0:01:46.1]} 25. Nc5
{[%clk 0:01:55.3]} 25... Qb5 {[%clk 0:01:43.5]} 26. Rb3 {[%clk 0:01:49.5]} 26...
Bf6 {[%clk 0:01:40.6]} 27. a4 {[%clk 0:01:49.3]} 27... Qe8 {[%clk 0:01:38.9]}
28. Nxb7 {[%clk 0:01:48]} 28... Qxa4 {[%clk 0:01:35.1]} 29. Rbb1 {[%clk
0:01:47.4]} 29... Rb8 {[%clk 0:01:33.7]} 30. Nc5 {[%clk 0:01:46]} 30... Qa3
{[%clk 0:01:30.1]} 31. Nd7 {[%clk 0:01:45.4]} 31... Bc3 {[%clk 0:01:22.7]} 32.
Nxb8 {[%clk 0:01:40.7]} 32... Bxe1 {[%clk 0:01:14.9]} 33. Nd7 {[%clk 0:01:35.3]}
1-0

[Event "*** Titled Tuesday Blitz"]
[Site "Chess.com"]
[Date "2020.12.29"]
[Round "3"]
[White "amatatanav"]
[Black "vugarrasulov"]
[Result "0-1"]
[WhiteElo "2444"]
[BlackElo "2781"]
[TimeControl "180+1"]
[EndTime "10:26:15 PST"]
[Termination "vugarrasulov won on time"]

1. e4 {[%clk 0:03:00.9]} 1... c5 {[%clk 0:03:00.9]} 2. Ne2 {[%clk 0:02:57.6]}
2... a6 {[%clk 0:02:59.9]} 3. g3 {[%clk 0:02:54.7]} 3... g6 {[%clk 0:02:55.6]}
4. Bg2 {[%clk 0:02:53.5]} 4... Bg7 {[%clk 0:02:56.1]} 5. c3 {[%clk 0:02:54.1]}
5... d6 {[%clk 0:02:50.4]} 6. d4 {[%clk 0:02:54.4]} 6... cxd4 {[%clk 0:02:46.8]}
7. cxd4 {[%clk 0:02:54.7]} 7... Nf6 {[%clk 0:02:47.1]} 8. O-O {[%clk 0:02:48.1]}
8... O-O {[%clk 0:02:47.6]} 9. Nbc3 {[%clk 0:02:43.4]} 9... Nc6 {[%clk
0:02:47.6]} 10. h3 {[%clk 0:02:35.3]} 10... Bd7 {[%clk 0:02:39.2]} 11. Be3
{[%clk 0:02:33.3]} 11... b5 {[%clk 0:02:36.8]} 12. e5 {[%clk 0:02:21.2]} 12...
dxe5 {[%clk 0:02:37.7]} 13. dxe5 {[%clk 0:02:17.1]} 13... Nxe5 {[%clk
0:02:38.6]} 14. Qd4 {[%clk 0:00:21.8]} 14... Nc4 {[%clk 0:02:33.8]} 15. Bg5
{[%clk 0:00:05.3]} 15... Rc8 {[%clk 0:02:10.6]} 16. Rad1 {[%clk 0:00:04.7]}
16... Be6 {[%clk 0:02:08.2]} 17. Qh4 {[%clk 0:00:03.3]} 17... Qb6 {[%clk
0:02:02.7]} 18. b3 {[%clk 0:00:03.2]} 18... Nd6 {[%clk 0:02:01.7]} 19. Nd5
{[%clk 0:00:02.5]} 19... Bxd5 {[%clk 0:02:01.3]} 20. Bxd5 {[%clk 0:00:03.2]}
20... Nf5 {[%clk 0:02:01.6]} 21. Qf4 {[%clk 0:00:02.6]} 21... Rc2 {[%clk
0:01:54.6]} 0-1

[Event "*** Titled Tuesday Blitz"]
[Site "Chess.com"]
[Date "2020.12.29"]
[Round "3"]
[White "FelixJoseYnojosa"]
[Black "ChrisTool2"]
[Result "1-0"]
[WhiteElo "2582"]
[BlackElo "2382"]
[TimeControl "180+1"]
[EndTime "10:26:22 PST"]
[Termination "FelixJoseYnojosa won by checkmate"]

1. e4 {[%clk 0:03:00.7]} 1... c5 {[%clk 0:02:53.2]} 2. c3 {[%clk 0:02:58]} 2...
Nf6 {[%clk 0:02:52.7]} 3. e5 {[%clk 0:02:58]} 3... Nd5 {[%clk 0:02:53]} 4. d4
{[%clk 0:02:58.9]} 4... cxd4 {[%clk 0:02:53.7]} 5. cxd4 {[%clk 0:02:58.4]} 5...
e6 {[%clk 0:02:53.8]} 6. Nc3 {[%clk 0:02:58]} 6... Nxc3 {[%clk 0:02:53.5]} 7.
bxc3 {[%clk 0:02:58.9]} 7... Qc7 {[%clk 0:02:54.1]} 8. Bd2 {[%clk 0:02:58.9]}
8... d6 {[%clk 0:02:54.3]} 9. f4 {[%clk 0:02:58.8]} 9... b6 {[%clk 0:02:51.7]}
10. Nf3 {[%clk 0:02:58.2]} 10... Bb7 {[%clk 0:02:51.8]} 11. Bd3 {[%clk 0:02:58]}
11... Nd7 {[%clk 0:02:51.2]} 12. Qb1 {[%clk 0:02:57.8]} 12... Bxf3 {[%clk
0:02:24.2]} 13. gxf3 {[%clk 0:02:57.4]} 13... Be7 {[%clk 0:02:22.9]} 14. Bxh7
{[%clk 0:02:50.2]} 14... Bh4+ {[%clk 0:02:21.1]} 15. Ke2 {[%clk 0:02:50.1]}
15... Rc8 {[%clk 0:01:24.7]} 16. Rg1 {[%clk 0:02:45.6]} 16... Kf8 {[%clk
0:01:18.1]} 17. Bd3 {[%clk 0:02:41.6]} 17... Be7 {[%clk 0:01:03.9]} 18. Rg2
{[%clk 0:02:36.4]} 18... Rh3 {[%clk 0:00:34]} 19. Qb5 {[%clk 0:02:31.5]} 19...
Kg8 {[%clk 0:00:24.8]} 20. Rag1 {[%clk 0:02:30.6]} 20... Bf8 {[%clk 0:00:23.1]}
21. Qb3 {[%clk 0:02:08.8]} 21... Nb8 {[%clk 0:00:20.8]} 22. f5 {[%clk
0:02:07.1]} 22... dxe5 {[%clk 0:00:18.5]} 23. fxe6 {[%clk 0:02:06.9]} 23... exd4
{[%clk 0:00:15.7]} 24. exf7+ {[%clk 0:02:05.9]} 24... Kh8 {[%clk 0:00:15]} 25.
Qe6 {[%clk 0:02:02.2]} 25... Rxh2 {[%clk 0:00:07.5]} 26. Qxc8 {[%clk 0:02:00.7]}
26... Rxg2+ {[%clk 0:00:06.3]} 27. Rxg2 {[%clk 0:02:01.6]} 27... g5 {[%clk
0:00:04.7]} 28. Qxf8# {[%clk 0:01:59.2]} 1-0

[Event "*** Titled Tuesday Blitz"]
[Site "Chess.com"]
[Date "2020.12.29"]
[Round "3"]
[White "vladgoncharov"]
[Black "VladimirBugayev"]
[Result "1-0"]
[WhiteElo "2544"]
[BlackElo "2284"]
[TimeControl "180+1"]
[EndTime "10:26:25 PST"]
[Termination "vladgoncharov won by resignation"]

1. e4 {[%clk 0:03:00.9]} 1... c6 {[%clk 0:02:59.5]} 2. d4 {[%clk 0:02:59.5]}
2... d5 {[%clk 0:03:00]} 3. e5 {[%clk 0:02:59.8]} 3... Bf5 {[%clk 0:02:59.1]} 4.
Nf3 {[%clk 0:02:58.8]} 4... e6 {[%clk 0:02:59.7]} 5. Be2 {[%clk 0:02:58.9]} 5...
c5 {[%clk 0:02:59.8]} 6. O-O {[%clk 0:02:56.2]} 6... Qb6 {[%clk 0:02:57.4]} 7.
Nc3 {[%clk 0:02:35.8]} 7... Nc6 {[%clk 0:02:38.1]} 8. Na4 {[%clk 0:02:33.1]}
8... Qa5 {[%clk 0:02:36.5]} 9. Nxc5 {[%clk 0:02:32.1]} 9... Bxc5 {[%clk
0:02:35.3]} 10. dxc5 {[%clk 0:02:32.1]} 10... Qxc5 {[%clk 0:02:35.8]} 11. c3
{[%clk 0:02:32.4]} 11... Nge7 {[%clk 0:02:31]} 12. Be3 {[%clk 0:02:26.6]} 12...
Qa5 {[%clk 0:02:30.9]} 13. h3 {[%clk 0:02:11.4]} 13... O-O {[%clk 0:02:28.2]}
14. b4 {[%clk 0:01:59.3]} 14... Qc7 {[%clk 0:02:26.6]} 15. Bc5 {[%clk
0:01:59.3]} 15... f6 {[%clk 0:01:31.2]} 16. exf6 {[%clk 0:01:47.6]} 16... Rxf6
{[%clk 0:01:30.1]} 17. Bd3 {[%clk 0:01:43.7]} 17... b6 {[%clk 0:01:25.1]} 18.
Be3 {[%clk 0:01:38.8]} 18... Ne5 {[%clk 0:01:07.5]} 19. Nxe5 {[%clk 0:01:37.4]}
19... Qxe5 {[%clk 0:01:06.5]} 20. Bd4 {[%clk 0:01:37.3]} 20... Qf4 {[%clk
0:01:06.3]} 21. Bxf6 {[%clk 0:01:35.4]} 21... gxf6 {[%clk 0:01:06.1]} 22. Bxf5
{[%clk 0:01:32.4]} 22... Nxf5 {[%clk 0:01:06.5]} 23. Re1 {[%clk 0:01:28.9]}
23... Kf7 {[%clk 0:00:41]} 24. Qh5+ {[%clk 0:01:27.1]} 24... Ke7 {[%clk
0:00:41.1]} 25. Qxh7+ {[%clk 0:01:26.2]} 25... Kd6 {[%clk 0:00:41.6]} 26. Qf7
{[%clk 0:01:15.7]} 1-0

[Event "*** Titled Tuesday Blitz"]
[Site "Chess.com"]
[Date "2020.12.29"]
[Round "3"]
[White "MasterMK73"]
[Black "KetiGrant"]
[Result "0-1"]
[WhiteElo "2260"]
[BlackElo "2454"]
[TimeControl "180+1"]
[EndTime "10:26:25 PST"]
[Termination "KetiGrant won on time"]

1. e4 {[%clk 0:03:00.9]} 1... c5 {[%clk 0:02:59.4]} 2. c3 {[%clk 0:02:55.1]}
2... d5 {[%clk 0:02:58.8]} 3. exd5 {[%clk 0:02:54.4]} 3... Qxd5 {[%clk
0:02:59.7]} 4. d4 {[%clk 0:02:54.2]} 4... Nf6 {[%clk 0:02:59.8]} 5. Nf3 {[%clk
0:02:51.6]} 5... e6 {[%clk 0:02:59.9]} 6. Be2 {[%clk 0:02:50.7]} 6... Be7 {[%clk
0:02:59]} 7. O-O {[%clk 0:02:50]} 7... O-O {[%clk 0:02:58.8]} 8. Be3 {[%clk
0:02:42.6]} 8... Rd8 {[%clk 0:02:40.5]} 9. Ne5 {[%clk 0:02:29.4]} 9... Nbd7
{[%clk 0:02:28.5]} 10. Bf3 {[%clk 0:02:20]} 10... Qd6 {[%clk 0:02:28]} 11. Bf4
{[%clk 0:02:05.8]} 11... Nxe5 {[%clk 0:02:23.9]} 12. Bxe5 {[%clk 0:01:59.1]}
12... Qb6 {[%clk 0:02:23.5]} 13. Qe2 {[%clk 0:01:47.1]} 13... Bd7 {[%clk
0:02:21]} 14. a4 {[%clk 0:01:37.9]} 14... a5 {[%clk 0:02:04.2]} 15. dxc5 {[%clk
0:01:22]} 15... Bxc5 {[%clk 0:01:59.9]} 16. Bxf6 {[%clk 0:01:21.5]} 16... gxf6
{[%clk 0:01:59.4]} 17. Ra2 {[%clk 0:00:47.3]} 17... Kh8 {[%clk 0:01:58.3]} 18.
Nd2 {[%clk 0:00:45]} 18... Rg8 {[%clk 0:01:49.6]} 19. Ne4 {[%clk 0:00:44.4]}
19... Be7 {[%clk 0:01:48.6]} 20. Qd2 {[%clk 0:00:36]} 20... Bc6 {[%clk
0:01:46.2]} 0-1

[Event "*** Titled Tuesday Blitz"]
[Site "Chess.com"]
[Date "2020.12.29"]
[Round "3"]
[White "Lion-Al-Messi"]
[Black "ElGasanov"]
[Result "1-0"]
[WhiteElo "2549"]
[BlackElo "2745"]
[TimeControl "180+1"]
[EndTime "10:26:37 PST"]
[Termination "Lion-Al-Messi won by resignation"]

1. d4 {[%clk 0:02:59.9]} 1... e6 {[%clk 0:01:42.2]} 2. e4 {[%clk 0:02:58.9]}
2... d5 {[%clk 0:01:41.1]} 3. exd5 {[%clk 0:02:59.8]} 3... exd5 {[%clk
0:01:39.8]} 4. Bd3 {[%clk 0:03:00.2]} 4... c5 {[%clk 0:01:39]} 5. Nf3 {[%clk
0:02:59.8]} 5... c4 {[%clk 0:01:35.1]} 6. Be2 {[%clk 0:02:59.4]} 6... Bd6 {[%clk
0:01:32.6]} 7. b3 {[%clk 0:02:59.6]} 7... cxb3 {[%clk 0:01:31.7]} 8. axb3 {[%clk
0:03:00.5]} 8... Nc6 {[%clk 0:01:31.4]} 9. O-O {[%clk 0:03:00.8]} 9... Nge7
{[%clk 0:01:32]} 10. c4 {[%clk 0:03:01.2]} 10... O-O {[%clk 0:01:28.6]} 11. Nc3
{[%clk 0:03:01.2]} 11... Bg4 {[%clk 0:01:20.9]} 12. h3 {[%clk 0:02:58.7]} 12...
Bh5 {[%clk 0:01:10.1]} 13. Bb2 {[%clk 0:02:55]} 13... a6 {[%clk 0:00:55.6]} 14.
Re1 {[%clk 0:02:52.5]} 14... Rc8 {[%clk 0:00:51.4]} 15. Rc1 {[%clk 0:02:46]}
15... Re8 {[%clk 0:00:49.9]} 16. Ne5 {[%clk 0:02:43.9]} 16... Bxe2 {[%clk
0:00:48.5]} 17. Rxe2 {[%clk 0:02:44.7]} 17... Bb8 {[%clk 0:00:45.8]} 18. Re1
{[%clk 0:02:33.7]} 18... Ba7 {[%clk 0:00:44]} 19. Qf3 {[%clk 0:02:28.6]} 19...
f6 {[%clk 0:00:40.6]} 20. cxd5 {[%clk 0:02:23.8]} 20... Nxd4 {[%clk 0:00:39.7]}
21. Qh5 {[%clk 0:02:00.7]} 21... fxe5 {[%clk 0:00:40.2]} 22. Rxe5 {[%clk
0:01:55.9]} 22... Ng6 {[%clk 0:00:40.6]} 23. Rxe8+ {[%clk 0:01:46.5]} 23... Qxe8
{[%clk 0:00:41.5]} 24. Qg4 {[%clk 0:01:46.3]} 24... Rxc3 {[%clk 0:00:36.9]} 25.
Rxc3 {[%clk 0:01:43.4]} 25... Qe1+ {[%clk 0:00:33.4]} 26. Kh2 {[%clk 0:01:41.2]}
26... Bb8+ {[%clk 0:00:33.5]} 27. Rg3 {[%clk 0:01:37]} 27... Qxf2 {[%clk
0:00:30.7]} 28. Qc8+ {[%clk 0:01:36.9]} 28... Nf8 {[%clk 0:00:30.1]} 29. Qxb8
{[%clk 0:01:34.5]} 29... Ne2 {[%clk 0:00:26.9]} 30. Rxg7+ {[%clk 0:01:34.2]} 1-0

[Event "*** Titled Tuesday Blitz"]
[Site "Chess.com"]
[Date "2020.12.29"]
[Round "3"]
[White "GameOverBro"]
[Black "Shepherdboy"]
[Result "0-1"]
[WhiteElo "2469"]
[BlackElo "2326"]
[TimeControl "180+1"]
[EndTime "10:26:39 PST"]
[Termination "Shepherdboy won by resignation"]

1. e4 {[%clk 0:03:00.9]} 1... d6 {[%clk 0:02:55.5]} 2. Nc3 {[%clk 0:03:00]} 2...
e5 {[%clk 0:02:52.7]} 3. Bc4 {[%clk 0:02:57.1]} 3... Nf6 {[%clk 0:02:49.7]} 4.
d3 {[%clk 0:02:55.6]} 4... Be7 {[%clk 0:02:46.8]} 5. f4 {[%clk 0:02:55.1]} 5...
O-O {[%clk 0:02:42.9]} 6. Nf3 {[%clk 0:02:54.5]} 6... Nbd7 {[%clk 0:02:38.2]} 7.
O-O {[%clk 0:02:54.2]} 7... c6 {[%clk 0:02:37.9]} 8. a4 {[%clk 0:02:53.4]} 8...
a5 {[%clk 0:02:27.2]} 9. Qe1 {[%clk 0:02:48.8]} 9... exf4 {[%clk 0:02:24.1]} 10.
Bxf4 {[%clk 0:02:48.1]} 10... Nc5 {[%clk 0:02:23.9]} 11. h3 {[%clk 0:02:37.4]}
11... Be6 {[%clk 0:02:23.7]} 12. Bxe6 {[%clk 0:02:30.2]} 12... Nxe6 {[%clk
0:02:24.6]} 13. Be3 {[%clk 0:02:25.6]} 13... d5 {[%clk 0:02:23.7]} 14. e5 {[%clk
0:02:21.1]} 14... Nd7 {[%clk 0:02:21.2]} 15. d4 {[%clk 0:02:19]} 15... Qb6
{[%clk 0:02:14.3]} 16. Qd2 {[%clk 0:02:09.1]} 16... f6 {[%clk 0:02:06.6]} 17.
Kh1 {[%clk 0:02:00.7]} 17... fxe5 {[%clk 0:02:01.2]} 18. dxe5 {[%clk 0:02:00.4]}
18... Bc5 {[%clk 0:01:58]} 19. Bxc5 {[%clk 0:01:51.3]} 19... Ndxc5 {[%clk
0:01:58.9]} 20. b3 {[%clk 0:01:48.5]} 20... Rad8 {[%clk 0:01:58.5]} 21. Rad1
{[%clk 0:01:44]} 21... d4 {[%clk 0:01:54.6]} 22. Ne2 {[%clk 0:01:42]} 22... d3
{[%clk 0:01:44.6]} 23. Nc1 {[%clk 0:01:38.6]} 23... dxc2 {[%clk 0:01:34.5]} 24.
Qxc2 {[%clk 0:01:39.5]} 24... Rxd1 {[%clk 0:01:24.4]} 25. Rxd1 {[%clk 0:01:31]}
25... Rd8 {[%clk 0:01:24.4]} 26. Rd6 {[%clk 0:01:28.7]} 26... Rxd6 {[%clk
0:01:18.8]} 27. exd6 {[%clk 0:01:29.6]} 27... Qd8 {[%clk 0:01:19.3]} 28. Qd1
{[%clk 0:01:18.6]} 28... Ne4 {[%clk 0:01:15.8]} 29. Qe1 {[%clk 0:01:13]} 29...
N6c5 {[%clk 0:01:09.4]} 30. Nd3 {[%clk 0:01:02.9]} 30... Nxd3 {[%clk 0:01:01.1]}
31. Kg1 {[%clk 0:00:55.7]} 31... Nxe1 {[%clk 0:00:56.1]} 0-1

[Event "*** Titled Tuesday Blitz"]
[Site "Chess.com"]
[Date "2020.12.29"]
[Round "3"]
[White "PavelChernomordik"]
[Black "r31415"]
[Result "1-0"]
[WhiteElo "2294"]
[BlackElo "2493"]
[TimeControl "180+1"]
[EndTime "10:26:41 PST"]
[Termination "PavelChernomordik won by resignation"]

1. e4 {[%clk 0:03:00.9]} 1... e5 {[%clk 0:02:59.7]} 2. Nf3 {[%clk 0:03:00.4]}
2... Nc6 {[%clk 0:03:00.3]} 3. Bc4 {[%clk 0:02:59.7]} 3... Bc5 {[%clk
0:02:59.5]} 4. O-O {[%clk 0:02:58.9]} 4... d6 {[%clk 0:02:59.3]} 5. h3 {[%clk
0:02:58.2]} 5... Nf6 {[%clk 0:02:59.5]} 6. c3 {[%clk 0:02:53.7]} 6... O-O {[%clk
0:02:50.4]} 7. d4 {[%clk 0:02:50.7]} 7... Bb6 {[%clk 0:02:50.2]} 8. Bg5 {[%clk
0:02:49.7]} 8... h6 {[%clk 0:02:49.5]} 9. Bh4 {[%clk 0:02:49]} 9... g5 {[%clk
0:02:50]} 10. Nxg5 {[%clk 0:02:46.6]} 10... hxg5 {[%clk 0:02:50]} 11. Bxg5
{[%clk 0:02:46.4]} 11... Kg7 {[%clk 0:02:45.6]} 12. f4 {[%clk 0:02:27.3]} 12...
exd4 {[%clk 0:02:39.7]} 13. Kh2 {[%clk 0:02:23.7]} 13... Qe8 {[%clk 0:02:32.8]}
14. e5 {[%clk 0:01:54]} 14... Ne4 {[%clk 0:02:15.4]} 15. Qh5 {[%clk 0:01:45.4]}
15... Nxg5 {[%clk 0:00:29.7]} 16. Qxg5+ {[%clk 0:01:33.1]} 16... Kh8 {[%clk
0:00:27.1]} 17. Qf6+ {[%clk 0:01:23.6]} 17... Kg8 {[%clk 0:00:25.3]} 18. Rf3
{[%clk 0:01:19.6]} 18... Bg4 {[%clk 0:00:22]} 19. Rg3 {[%clk 0:01:08.4]} 1-0

[Event "*** Titled Tuesday Blitz"]
[Site "Chess.com"]
[Date "2020.12.29"]
[Round "3"]
[White "Saylormoon"]
[Black "IngOscarArdila"]
[Result "1-0"]
[WhiteElo "2338"]
[BlackElo "2108"]
[TimeControl "180+1"]
[EndTime "10:26:45 PST"]
[Termination "Saylormoon won by resignation"]

1. e4 {[%clk 0:03:00.9]} 1... c5 {[%clk 0:02:58]} 2. Nf3 {[%clk 0:03:00.5]} 2...
Nc6 {[%clk 0:02:57.4]} 3. Bb5 {[%clk 0:03:00.1]} 3... g6 {[%clk 0:02:55.7]} 4.
Bxc6 {[%clk 0:02:59]} 4... bxc6 {[%clk 0:02:55]} 5. d4 {[%clk 0:02:57.2]} 5...
Qa5+ {[%clk 0:02:36.9]} 6. Bd2 {[%clk 0:02:53.5]} 6... Qb6 {[%clk 0:02:34.8]} 7.
dxc5 {[%clk 0:02:50.8]} 7... Qxc5 {[%clk 0:02:31.4]} 8. Bc3 {[%clk 0:02:50.9]}
8... Nf6 {[%clk 0:02:27.9]} 9. Nbd2 {[%clk 0:02:45.3]} 9... Bg7 {[%clk
0:02:25.3]} 10. O-O {[%clk 0:02:44.1]} 10... O-O {[%clk 0:02:24]} 11. e5 {[%clk
0:02:44.2]} 11... Nd5 {[%clk 0:02:23.5]} 12. Bd4 {[%clk 0:02:44]} 12... Qa5
{[%clk 0:02:16.1]} 13. c4 {[%clk 0:02:43.1]} 13... Nf4 {[%clk 0:02:12.6]} 14.
Bc3 {[%clk 0:02:41.3]} 14... Qb6 {[%clk 0:01:51.5]} 15. Ne4 {[%clk 0:02:34.3]}
15... Qc7 {[%clk 0:01:36.5]} 16. Qd2 {[%clk 0:02:33]} 16... Ne6 {[%clk
0:01:30.8]} 17. Rfd1 {[%clk 0:01:58.6]} 17... Rb8 {[%clk 0:01:24.3]} 18. b3
{[%clk 0:01:57.7]} 18... Qb6 {[%clk 0:00:46.5]} 19. Ba5 {[%clk 0:01:51.6]} 19...
Qa6 {[%clk 0:00:41.2]} 20. Nd4 {[%clk 0:01:45.4]} 20... Nxd4 {[%clk 0:00:25.4]}
21. Nc5 {[%clk 0:01:44.6]} 21... Qxa5 {[%clk 0:00:20.4]} 22. Qxa5 {[%clk
0:01:44]} 22... d6 {[%clk 0:00:19.3]} 23. Nd3 {[%clk 0:01:28.4]} 23... dxe5
{[%clk 0:00:17.9]} 24. Qxa7 {[%clk 0:01:27]} 24... e4 {[%clk 0:00:16.9]} 25.
Qxb8 {[%clk 0:01:21.6]} 1-0

[Event "*** Titled Tuesday Blitz"]
[Site "Chess.com"]
[Date "2020.12.29"]
[Round "3"]
[White "Khusenkhojaev"]
[Black "12teen"]
[Result "0-1"]
[WhiteElo "2427"]
[BlackElo "2746"]
[TimeControl "180+1"]
[EndTime "10:26:46 PST"]
[Termination "12teen won by resignation"]

1. Nf3 {[%clk 0:03:00.9]} 1... b6 {[%clk 0:02:59.6]} 2. g3 {[%clk 0:02:56.4]}
2... Bb7 {[%clk 0:03:00.5]} 3. Bg2 {[%clk 0:02:55.9]} 3... d5 {[%clk 0:03:01.4]}
4. d4 {[%clk 0:02:55.5]} 4... Nf6 {[%clk 0:03:01.5]} 5. c4 {[%clk 0:02:52.9]}
5... dxc4 {[%clk 0:03:02.4]} 6. Qa4+ {[%clk 0:02:51.3]} 6... Nbd7 {[%clk
0:03:02.2]} 7. O-O {[%clk 0:02:48.7]} 7... a6 {[%clk 0:03:01.2]} 8. Qxc4 {[%clk
0:02:46.1]} 8... b5 {[%clk 0:03:01.5]} 9. Qc2 {[%clk 0:02:34.9]} 9... e6 {[%clk
0:03:00.3]} 10. Rd1 {[%clk 0:02:27.1]} 10... c5 {[%clk 0:02:58.9]} 11. dxc5
{[%clk 0:02:12.5]} 11... Bxc5 {[%clk 0:02:59.8]} 12. Bg5 {[%clk 0:02:06]} 12...
Rc8 {[%clk 0:02:56.8]} 13. Bxf6 {[%clk 0:01:43.4]} 13... Qxf6 {[%clk 0:02:56]}
14. Nc3 {[%clk 0:01:42.8]} 14... b4 {[%clk 0:02:49.5]} 15. Qd3 {[%clk
0:01:10.7]} 15... Nb6 {[%clk 0:02:49.2]} 16. Ne4 {[%clk 0:01:02.7]} 16... Bxe4
{[%clk 0:02:46.4]} 17. Qxe4 {[%clk 0:01:03.5]} 17... O-O {[%clk 0:02:46.9]} 18.
b3 {[%clk 0:00:55.1]} 18... Nd5 {[%clk 0:02:45.4]} 19. Qe5 {[%clk 0:00:45.7]}
19... Qe7 {[%clk 0:02:35.5]} 20. Nd4 {[%clk 0:00:28.9]} 20... Bxd4 {[%clk
0:02:15.4]} 21. Rxd4 {[%clk 0:00:28.5]} 21... Nc3 {[%clk 0:02:15.5]} 22. Bf3
{[%clk 0:00:22.4]} 22... h6 {[%clk 0:02:10.2]} 23. h4 {[%clk 0:00:21]} 23... Rc5
{[%clk 0:02:08.6]} 24. Qe3 {[%clk 0:00:18.9]} 24... a5 {[%clk 0:02:08.3]} 25. a3
{[%clk 0:00:17]} 25... Rc7 {[%clk 0:02:02.3]} 26. axb4 {[%clk 0:00:15.9]} 26...
axb4 {[%clk 0:02:03.2]} 27. Kg2 {[%clk 0:00:13.8]} 27... Qc5 {[%clk 0:02:02.1]}
28. Ra6 {[%clk 0:00:09.4]} 28... Qb5 {[%clk 0:01:52.5]} 29. Qd3 {[%clk
0:00:08.9]} 29... Qc5 {[%clk 0:01:49]} 30. Rc4 {[%clk 0:00:05.8]} 30... Qe7
{[%clk 0:01:48.6]} 31. Rxb4 {[%clk 0:00:06]} 31... Qxb4 {[%clk 0:01:48.3]} 0-1